bitfinex-derivatives/quotes_SOLF0:USTF0_20250816
["timestamp","ask_amount","ask_price","bid_price","bid_amount"]
[1755355438020,2.9,188.4,188.33,2.93]
[1755355438322,2.9,188.38,188.33,2.93]
[1755355440121,2.9,188.37,188.33,2.93]
[1755355440325,2.9,188.41,188.33,2.93]
[1755355440524,2.9,188.39,188.33,2.93]
[1755355440721,2.9,188.39,188.33,5.3064]
[1755355440924,2.9,188.38,188.34,2.93]
[1755355441427,2.9,188.37,188.34,2.93]
[1755355441827,2.9,188.35,188.3,47.61843181]
[1755355442128,2.9,188.4,188.3,3.61843181]
[1755355442427,2.9,188.38,188.31,2.93]
[1755355444229,2.9,188.38,188.31,8.2369]
[1755355444421,2.9,188.38,188.32,2.93]
[1755355446324,8.07674795,188.44,188.34,5.306]
[1755355446527,2.9,188.37,188.35,2.93]
[1755355447127,2.9,188.37,188.34,5.306]
[1755355447327,2.9,188.37,188.36,2.93]
[1755355448128,2.9,188.37,188.33,2.93]
[1755355448332,2.9,188.37,188.3,47.61843181]
[1755355448525,2.9,188.37,188.34,2.93]
[1755355448830,2.9,188.42,188.33,2.93]
[1755355449024,2.9,188.4,188.33,2.93]
[1755355449232,4.45831614,188.43,188.33,2.93]
[1755355449233,2.9,188.38,188.33,2.93]
[1755355449431,2.9,188.38,188.34,2.93]
[1755355450234,2.9,188.38,188.31,2.93]
[1755355452725,3.90995139,188.37,188.31,2.93]
[1755355452929,2.9,188.35,188.31,2.93]
[1755355453125,2.9,188.35,188.28,2.93]
[1755355453521,3.9116491,188.34,188.28,2.93]
[1755355453722,2.9,188.33,188.28,2.93]
[1755355453925,2.9,188.33,188.29,2.93]
[1755355454324,2.9,188.33,188.25,2.93]
[1755355455128,2.9,188.33,188.27,2.93]
[1755355456037,2.9,188.33,188.24,3.61843181]
[1755355456225,2.9,188.33,188.25,2.93]
[1755355456535,5.89029242,188.39,188.25,2.93]
[1755355456536,2.9,188.31,188.25,2.93]
[1755355460233,3.91292904,188.3,188.23,135.77]
[1755355460432,2.96,188.29,188.23,3.05]
[1755355461033,2.96,188.29,188.21,110.63274268]
[1755355461238,2.96,188.27,188.2,3.05]
[1755355464132,2.96,188.27,188.21,3.05]
[1755355477853,2.96,188.27,188.21,3.61843181]
[1755355478051,2.96,188.34,188.21,6.66843181]
[1755355478352,2.96,188.31,188.22,3.05]
[1755355481054,2.96,188.31,188.25,3.05]
[1755355482155,2.96,188.31,188.25,8.3585]
[1755355482350,2.96,188.31,188.26,3.05]
[1755355485046,2.96,188.33,188.28,3.05]
[1755355485251,2.96,188.34,188.28,3.05]
[1755355487859,2.96,188.34,188.25,3.05]
[1755355488355,2.96,188.32,188.25,3.05]
[1755355491967,6.57843181,188.32,188.21,3.61843181]
[1755355492164,3.90743586,188.31,188.22,2.92]
[1755355492369,2.92,188.29,188.22,2.92]
[1755355495359,2.92,188.27,188.22,2.92]
[1755355496170,2.92,188.27,188.18,8.92903181]
[1755355496470,2.92,188.27,188.23,2.92]
[1755355496670,2.92,188.27,188.21,2.92]
[1755355500570,4.45831614,188.36,188.25,2.92]
[1755355500873,3.91784136,188.35,188.29,2.92]
[1755355501074,2.92,188.37,188.32,2.92]
[1755355501273,3.90345764,188.36,188.32,2.92]
[1755355501472,3.90345764,188.35,188.32,2.92]
[1755355501775,8.07674795,188.42,188.32,2.92]
[1755355501972,2.92,188.35,188.32,2.92]
[1755355502478,2.92,188.41,188.31,3.61843181]
[1755355502683,2.92,188.39,188.31,2.92]
[1755355502875,2.92,188.37,188.31,2.92]
[1755355503075,2.92,188.35,188.29,2.92]
[1755355503379,2.92,188.41,188.34,2.92]
[1755355503583,3.89980323,188.4,188.34,2.92]
[1755355503768,3.89980323,188.39,188.34,2.92]
[1755355503973,2.92,188.39,188.34,2.92]
[1755355504168,2.92,188.44,188.34,2.92]
[1755355504375,2.92,188.42,188.34,2.92]
[1755355504575,2.92,188.4,188.34,2.92]
[1755355504775,2.92,188.38,188.34,2.92]
[1755355505484,2.92,188.38,188.32,2.92]
[1755355514983,2.92,188.38,188.32,8.2265]
[1755355515185,2.92,188.38,188.33,2.92]
[1755355515585,2.92,188.37,188.33,2.92]
[1755355516990,2.92,188.44,188.33,8.2263]
[1755355517186,2.92,188.42,188.34,2.92]
[1755355517386,2.92,188.4,188.34,2.92]
[1755355517888,2.92,188.46,188.35,2.92]
[1755355518189,2.92,188.44,188.38,2.92]
[1755355519795,2.97,188.48,188.39,2.9]
[1755355520092,2.97,188.46,188.39,2.9]
[1755355521088,2.97,188.5,188.41,2.9]
[1755355521293,2.97,188.48,188.41,2.9]
[1755355521489,2.97,188.45,188.41,2.9]
[1755355521792,2.97,188.51,188.41,2.9]
[1755355521996,2.97,188.49,188.41,2.9]
[1755355522291,2.97,188.47,188.41,2.9]
[1755355523488,2.97,188.47,188.39,2.9]
[1755355523693,2.97,188.45,188.35,2.9]
[1755355524287,3.87874601,188.44,188.35,2.9]
[1755355524593,3.61843181,188.43,188.33,2.9]
[1755355524793,3.87917316,188.42,188.33,2.9]
[1755355524990,2.97,188.4,188.33,2.9]
[1755355525391,6.58843181,188.4,188.29,2.9]
[1755355525692,2.97,188.38,188.29,2.9]
[1755355530800,2.97,188.38,188.3,2.9]
[1755355534396,2.97,188.38,188.32,2.9]
[1755355534602,2.97,188.4,188.34,3.61843181]
[1755355534802,2.97,188.4,188.35,2.9]
[1755355535201,2.97,188.42,188.35,2.9]
[1755355535403,2.97,188.42,188.37,2.9]
[1755355535599,2.97,188.45,188.37,6.51843181]
[1755355535904,2.97,188.45,188.39,2.9]
[1755355536305,132.14,188.48,188.4,5.3043]
[1755355536509,2.97,188.47,188.41,2.9]
[1755355538009,2.97,188.45,188.33,2.9]
[1755355538208,6.58843181,188.43,188.33,2.9]
[1755355538403,2.97,188.41,188.33,2.9]
[1755355541202,2.97,188.41,188.34,2.9]
[1755355541805,2.97,188.46,188.39,2.9]
[1755355542613,2.97,188.46,188.41,2.9]
[1755355542804,2.97,188.45,188.41,2.9]
[1755355543813,2.97,188.43,188.38,3.61843181]
[1755355544015,2.97,188.5,188.41,2.9]
[1755355544211,2.97,188.48,188.39,2.9]
[1755355544410,2.97,188.46,188.39,2.9]
[1755355544714,3.88742945,188.45,188.38,3.61843181]
[1755355544916,4.45831614,188.5,188.4,2.9]
[1755355545115,12.47247663,188.49,188.4,2.9]
[1755355545414,2.97,188.47,188.4,2.9]
[1755355545616,2.97,188.45,188.4,2.9]
[1755355546316,2.97,188.45,188.4,8.2044]
[1755355546508,2.97,188.45,188.41,2.9]
[1755355547015,4.45831614,188.5,188.41,2.9]
[1755355547212,2.97,188.48,188.4,2.9]
[1755355547416,2.97,188.46,188.4,2.9]
[1755355548115,2.97,188.46,188.4,8.2045]
[1755355548320,2.97,188.46,188.41,2.9]
[1755355548517,2.97,188.45,188.41,2.9]
[1755355549020,3.0,188.44,188.41,2.9]
[1755355550723,3.61843181,188.51,188.41,2.9]
[1755355551019,3.0,188.49,188.41,2.9]
[1755355551222,3.0,188.47,188.41,2.9]
[1755355553725,3.88642499,188.46,188.37,2.82]
[1755355553926,3.0,188.45,188.37,2.82]
[1755355554726,3.88692548,188.44,188.37,2.82]
[1755355554919,3.0,188.43,188.37,2.82]
[1755355555224,3.88737984,188.42,188.35,2.82]
[1755355555414,3.0,188.41,188.35,2.82]
[1755355561531,3.61843181,188.45,188.35,2.82]
[1755355561737,3.0,188.45,188.37,2.82]
[1755355563036,3.0,188.49,188.39,3.61843181]
[1755355563241,3.0,188.47,188.4,2.82]
[1755355563542,3.0,188.47,188.41,2.82]
[1755355567344,3.0,188.5,188.41,2.82]
[1755355567645,3.0,188.48,188.41,2.82]
[1755355571146,3.0,188.48,188.4,2.82]
[1755355576251,3.0,188.48,188.41,2.82]
[1755355577651,3.0,188.48,188.43,2.82]
[1755355577852,3.0,188.53,188.43,2.82]
[1755355578154,3.0,188.51,188.43,5.3036]
[1755355578457,3.0,188.49,188.44,2.82]
[1755355579257,2.84,188.53,188.45,2.92]
[1755355579450,2.84,188.51,188.45,2.92]
[1755355579656,2.84,188.49,188.45,2.92]
[1755355579854,2.84,188.48,188.45,2.92]
[1755355580658,2.84,188.54,188.45,2.92]
[1755355580857,2.84,188.52,188.45,2.92]
[1755355581059,2.84,188.5,188.42,3.61843181]
[1755355581260,2.84,188.53,188.43,2.92]
[1755355581559,2.84,188.51,188.43,2.92]
[1755355581753,2.84,188.49,188.44,2.92]
[1755355582150,2.84,188.48,188.44,2.92]
[1755355582356,2.84,188.47,188.44,2.92]
[1755355589269,2.84,188.53,188.44,2.92]
[1755355589565,2.84,188.51,188.44,2.92]
[1755355589764,2.84,188.49,188.44,2.92]
[1755355591863,3.61843181,188.54,188.45,2.92]
[1755355591864,2.84,188.54,188.45,2.92]
[1755355592062,12.50070869,188.53,188.46,2.92]
[1755355592261,3.88923566,188.52,188.46,2.92]
[1755355592465,2.84,188.5,188.46,2.92]
[1755355592665,2.84,188.49,188.46,2.92]
[1755355593064,2.84,188.54,188.46,2.92]
[1755355593367,2.84,188.52,188.46,2.92]
[1755355593562,3.88903858,188.51,188.46,2.92]
[1755355593761,2.84,188.5,188.46,2.92]
[1755355594371,2.84,188.55,188.46,2.92]
[1755355594668,2.84,188.53,188.46,2.92]
[1755355595270,2.84,188.53,188.46,5.3027]
[1755355595469,2.84,188.53,188.47,2.92]
[1755355598061,2.84,188.56,188.49,2.92]
[1755355598266,3.88590304,188.55,188.49,2.92]
[1755355598571,2.84,188.53,188.5,2.92]
[1755355599475,2.84,188.53,188.48,3.61843181]
[1755355599675,2.84,188.53,188.51,2.92]
[1755355599879,2.84,188.52,188.51,2.92]
[1755355600583,2.84,188.59,188.51,11.83963181]
[1755355600875,2.84,188.56,188.52,2.92]
[1755355601078,2.84,188.6,188.52,2.92]
[1755355601276,2.84,188.58,188.52,2.92]
[1755355601477,2.84,188.56,188.52,2.92]
[1755355601874,2.84,188.61,188.52,2.92]
[1755355602069,12.48333798,188.6,188.52,2.92]
[1755355602372,2.84,188.58,188.52,2.92]
[1755355602577,2.84,188.58,188.53,2.92]
[1755355603880,2.84,188.58,188.54,2.92]
[1755355604071,4.45831614,188.63,188.5,3.61843181]
[1755355604272,6.72512923,188.62,188.57,2.92]
[1755355604474,2.84,188.61,188.57,2.92]
[1755355604875,2.84,188.6,188.57,8.2195]
[1755355605074,2.84,188.6,188.58,2.92]
[1755355605677,2.84,188.66,188.58,2.92]
[1755355605873,7.98350253,188.65,188.58,2.92]
[1755355606078,2.84,188.63,188.58,2.92]
[1755355607381,2.84,188.67,188.6,2.92]
[1755355607577,3.87939534,188.66,188.6,2.92]
[1755355607775,2.84,188.65,188.6,2.92]
[1755355608978,2.99,188.67,188.6,2.95]
[1755355611579,2.99,188.67,188.63,2.95]
[1755355611780,2.99,188.69,188.59,2.95]
[1755355612084,2.99,188.67,188.59,2.95]
[1755355612677,6.60843181,188.65,188.59,2.95]
[1755355612874,2.99,188.63,188.59,2.95]
[1755355613284,2.99,188.63,188.55,2.95]
[1755355613679,2.99,188.61,188.53,2.95]
[1755355613878,2.99,188.61,188.48,3.61843181]
[1755355614078,2.99,188.59,188.51,2.95]
[1755355616787,2.99,188.59,188.52,2.95]
[1755355619688,2.99,188.59,188.55,2.95]
[1755355620191,2.89,188.58,188.55,2.95]
[1755355621490,3.61843181,188.68,188.55,2.95]
[1755355621693,12.41595954,188.67,188.55,8.25]
[1755355621893,3.86668857,188.66,188.56,2.95]
[1755355622094,2.99,188.64,188.56,2.95]
[1755355622481,2.99,188.64,188.57,2.95]
[1755355622883,3.61843181,188.68,188.54,3.61843181]
[1755355622884,2.99,188.68,188.6,3.61843181]
[1755355623089,2.99,188.68,188.61,2.95]
[1755355623391,3.86569041,188.67,188.61,2.95]
[1755355623594,3.86569041,188.67,188.57,3.61843181]
[1755355623595,2.99,188.65,188.58,2.95]
[1755355625891,2.99,188.65,188.6,3.61843181]
[1755355626090,2.99,188.65,188.61,2.95]
[1755355626795,2.99,188.65,188.61,8.2483]
[1755355626990,2.99,188.65,188.62,2.95]
[1755355627186,2.99,188.64,188.63,2.95]
[1755355627391,2.99,188.7,188.63,2.95]
[1755355627686,2.99,188.67,188.63,2.95]
[1755355627892,2.99,188.69,188.64,2.95]
[1755355628201,2.99,188.69,188.66,2.95]
[1755355628594,2.99,188.73,188.63,2.95]
[1755355628795,2.99,188.71,188.63,2.95]
[1755355630596,2.99,188.71,188.63,3.61843181]
[1755355630795,2.99,188.71,188.64,2.95]
[1755355637108,2.99,188.71,188.64,8.2475]
[1755355637310,2.99,188.71,188.67,2.95]
[1755355637508,2.99,188.7,188.67,2.95]
[1755355637808,2.99,188.74,188.64,2.95]
[1755355638003,12.38587333,188.73,188.64,2.95]
[1755355638205,2.99,188.71,188.64,2.95]
[1755355639099,3.86330577,188.7,188.64,2.95]
[1755355639307,2.86,188.69,188.64,2.95]
[1755355639702,2.86,188.69,188.61,2.9]
[1755355639905,2.86,188.73,188.66,3.61843181]
[1755355640104,2.86,188.73,188.67,2.9]
[1755355640906,136.03120263,188.79,188.69,3.61843181]
[1755355641099,2.86,188.77,188.7,2.9]
[1755355641304,3.85979431,188.76,188.7,2.9]
[1755355641507,2.86,188.74,188.7,2.9]
[1755355641705,2.86,188.76,188.7,2.9]
[1755355641904,2.86,188.76,188.73,2.9]
[1755355642399,2.86,188.84,188.75,3.61843181]
[1755355642603,4.43120263,188.89,188.8,2.9]
[1755355642604,2.86,188.89,188.8,2.9]
[1755355642803,3.85616385,188.88,188.83,2.9]
[1755355643009,2.86,188.89,188.85,2.9]
[1755355643306,2.86,188.92,188.84,2.9]
[1755355643509,2.86,188.9,188.84,2.9]
[1755355644409,3.84706301,188.89,188.82,2.9]
[1755355644605,2.86,188.87,188.82,2.9]
[1755355644806,2.86,188.87,188.83,2.9]
[1755355645011,2.86,188.92,188.81,2.9]
[1755355645203,8.04963444,188.93,188.81,2.9]
[1755355645204,2.86,188.9,188.83,3.61843181]
[1755355645505,2.86,188.9,188.84,2.9]
[1755355646109,2.86,188.9,188.83,3.61843181]
[1755355646313,2.86,188.88,188.84,2.9]
[1755355646508,2.86,188.95,188.84,2.9]
[1755355646711,2.86,188.93,188.87,2.9]
[1755355648507,131.6,188.98,188.87,2.9]
[1755355648508,2.86,188.97,188.87,2.9]
[1755355648703,3.61843181,188.99,188.87,2.9]
[1755355648913,2.86,188.95,188.87,2.9]
[1755355650915,2.86,188.92,188.84,2.9]
[1755355657621,2.86,188.9,188.81,2.9]
[1755355658618,2.86,188.9,188.83,3.61843181]
[1755355658820,2.86,188.9,188.84,2.9]
[1755355659217,2.86,188.9,188.82,2.9]
[1755355661421,3.61843181,188.85,188.78,2.9]
[1755355661626,2.86,188.84,188.78,2.9]
[1755355662320,2.86,188.81,188.74,2.9]
[1755355665725,2.86,188.81,188.69,2.9]
[1755355666124,4.05271073,188.8,188.69,2.9]
[1755355666425,2.86,188.81,188.69,2.9]
[1755355666622,2.86,188.81,188.71,2.9]
[1755355667026,2.86,188.81,188.72,5.2953]
[1755355667226,2.86,188.81,188.73,2.9]
[1755355668222,2.86,188.87,188.78,2.9]
[1755355668429,2.86,188.85,188.78,2.9]
[1755355669526,131.88,188.88,188.63,366.3356]
[1755355669527,2.92,188.83,188.75,3.04]
[1755355669724,2.92,188.81,188.75,3.04]
[1755355670826,2.92,188.79,188.72,3.04]
[1755355680141,2.92,188.79,188.73,3.04]
[1755355680331,2.92,188.85,188.73,3.04]
[1755355680531,2.92,188.83,188.73,3.04]
[1755355680732,2.92,188.83,188.63,399.74]
[1755355680733,2.92,188.78,188.64,3.04]
[1755355680929,2.92,188.76,188.64,3.04]
[1755355681130,2.92,188.74,188.64,3.04]
[1755355681329,2.92,188.77,188.65,3.04]
[1755355681940,2.92,188.77,188.67,6.11086031]
[1755355682134,2.92,188.77,188.68,3.04]
[1755355682338,2.92,188.79,188.72,3.04]
[1755355683738,2.92,188.84,188.72,3.04]
[1755355683932,2.92,188.82,188.72,3.04]
[1755355684133,7.94282644,188.81,188.72,3.04]
[1755355684335,6.11086031,188.88,188.72,3.04]
[1755355684336,2.92,188.82,188.72,3.04]
[1755355685534,3.86169135,188.81,188.72,3.04]
[1755355685737,2.92,188.79,188.72,3.04]
[1755355687141,2.92,188.79,188.73,3.04]
[1755355688534,2.92,188.79,188.67,55.40766031]
[1755355688740,2.92,188.79,188.68,3.04]
[1755355689545,2.92,188.79,188.69,3.04]
[1755355690241,2.92,188.79,188.7,3.04]
[1755355690548,2.92,188.82,188.72,3.04]
[1755355690745,2.92,188.82,188.75,5.2944]
[1755355690948,2.92,188.82,188.76,3.04]
[1755355691843,3.8627287,188.81,188.72,3.04]
[1755355692150,2.92,188.8,188.72,3.04]
[1755355693449,2.92,188.8,188.74,3.04]
[1755355700854,2.92,188.8,188.69,50.11086031]
[1755355701156,3.87410352,188.79,188.7,3.05]
[1755355701359,3.87618676,188.78,188.7,3.05]
[1755355701555,3.0,188.77,188.7,3.05]
[1755355702061,3.0,188.75,188.7,3.05]
[1755355702257,3.0,188.75,188.66,5.297]
[1755355702453,3.0,188.75,188.67,3.05]
[1755355703254,3.87928766,188.74,188.67,3.05]
[1755355703453,3.0,188.73,188.67,3.05]
[1755355704961,3.0,188.77,188.67,3.05]
[1755355705254,3.0,188.75,188.67,3.05]
[1755355705456,3.0,188.73,188.67,3.05]
[1755355707263,3.0,188.73,188.65,3.05]
[1755355707760,3.0,188.71,188.65,3.05]
[1755355707960,3.0,188.69,188.62,3.05]
[1755355708258,6.88249397,188.68,188.58,3.05]
[1755355708456,3.0,188.68,188.59,3.05]
[1755355709255,3.0,188.68,188.6,5.2986]
[1755355709458,3.0,188.68,188.61,3.05]
[1755355709859,3.0,188.68,188.62,3.05]
[1755355713967,3.0,188.74,188.62,3.05]
[1755355714169,3.0,188.74,188.64,5.2975]
[1755355714365,3.0,188.74,188.62,3.05]
[1755355714766,3.0,188.74,188.63,3.05]
[1755355717066,3.0,188.72,188.63,5.298]
[1755355717267,3.0,188.72,188.64,3.05]
[1755355718773,3.0,188.7,188.64,3.05]
[1755355723574,3.0,188.7,188.6,3.05]
[1755355723773,3.0,188.68,188.6,3.05]
[1755355724667,3.0,188.68,188.56,3.05]
[1755355724869,20.32191901,188.73,188.56,3.05]
[1755355724870,3.0,188.66,188.56,3.05]
[1755355725272,3.0,188.68,188.56,3.05]
[1755355725469,3.0,188.68,188.59,6.11086031]
[1755355725673,3.0,188.68,188.6,3.05]
[1755355728872,3.0,188.68,188.58,2.89]
[1755355729371,3.86381535,188.67,188.58,2.89]
[1755355729578,2.88,188.66,188.58,2.89]
[1755355735382,2.88,188.66,188.58,8.1894]
[1755355735586,2.88,188.66,188.59,2.89]
[1755355736784,2.88,188.73,188.6,2.89]
[1755355736987,2.88,188.71,188.6,2.89]
[1755355737783,2.88,188.71,188.61,5.2983]
[1755355737989,2.88,188.71,188.62,2.89]
[1755355738485,2.88,188.71,188.63,2.89]
[1755355739081,2.88,188.71,188.64,2.89]
[1755355739584,2.88,188.71,188.65,2.89]
[1755355743086,2.88,188.71,188.62,2.89]
[1755355743898,2.88,188.74,188.62,2.89]
[1755355744094,492.37205998,188.78,188.62,2.89]
[1755355744298,2.88,188.72,188.62,2.89]
[1755355744599,2.88,188.72,188.63,2.89]
[1755355745194,2.88,188.72,188.66,2.89]
[1755355746204,3.88279046,188.71,188.66,2.89]
[1755355746399,2.88,188.72,188.66,2.89]
[1755355746706,2.88,188.7,188.63,2.89]
[1755355747297,4.43205998,188.75,188.55,8.9474226]
[1755355747298,2.88,188.68,188.61,2.89]
[1755355747505,3.88615945,188.67,188.61,2.89]
[1755355747702,2.88,188.65,188.53,2.89]
[1755355747899,2.88,188.65,188.57,2.89]
[1755355748101,2.88,188.72,188.57,2.89]
[1755355748302,2.88,188.72,188.56,6.11086031]
[1755355748303,2.88,188.7,188.61,2.89]
[1755355748707,2.88,188.7,188.64,5.2977]
[1755355748898,2.88,188.72,188.65,2.89]
[1755355749204,2.88,188.74,188.69,5.2961]
[1755355749403,2.88,188.74,188.7,2.89]
[1755355749599,2.88,188.77,188.7,2.89]
[1755355750197,2.88,188.77,188.73,2.89]
[1755355750399,2.88,188.76,188.73,2.89]
[1755355750605,2.88,188.82,188.73,2.89]
[1755355750806,2.88,188.8,188.73,2.89]
[1755355751208,2.88,188.8,188.74,2.89]
[1755355752500,2.88,188.82,188.75,2.89]
[1755355752703,2.88,188.82,188.61,142.9371]
[1755355752704,2.88,188.82,188.77,2.89]
[1755355752901,2.88,188.87,188.77,2.89]
[1755355753113,2.88,188.85,188.77,2.89]
[1755355753312,2.88,188.83,188.77,2.89]
[1755355753609,2.88,188.83,188.75,2.89]
[1755355759819,2.88,188.83,188.76,3.06]
[1755355761415,2.88,188.83,188.77,3.06]
[1755355763912,2.88,188.83,188.77,5.294]
[1755355764116,2.87,188.82,188.78,3.06]
[1755355764311,2.87,188.84,188.78,3.06]
[1755355764619,2.87,188.84,188.8,3.06]
[1755355764813,2.87,188.93,188.77,3.06]
[1755355765021,2.87,188.91,188.77,3.06]
[1755355765223,2.87,188.91,188.76,50.11086031]
[1755355765224,2.87,188.91,188.81,3.06]
[1755355765810,2.87,188.91,188.82,5.2926]
[1755355766131,2.87,188.91,188.83,3.06]
[1755355766821,2.87,188.91,188.84,3.06]
[1755355768020,2.87,188.91,188.85,3.06]
[1755355768218,2.87,188.91,188.8,6.11086031]
[1755355768417,2.87,188.91,188.81,3.06]
[1755355768622,2.87,188.91,188.82,3.06]
[1755355770627,3.84826275,188.9,188.8,3.06]
[1755355770919,2.87,188.89,188.8,3.06]
[1755355772223,2.87,188.89,188.82,3.06]
[1755355772620,2.87,188.89,188.83,5.2923]
[1755355772818,2.87,188.89,188.84,3.06]
[1755355773724,2.87,188.88,188.84,3.06]
[1755355774030,2.87,188.88,188.85,3.06]
[1755355774328,2.87,188.9,188.85,3.06]
[1755355776031,132.3,188.93,188.85,3.06]
[1755355776230,2.87,188.92,188.85,3.06]
[1755355776431,2.87,188.92,188.8,50.11086031]
[1755355776633,2.87,188.92,188.81,3.06]
[1755355777731,2.87,188.92,188.82,3.06]
[1755355778027,2.87,188.92,188.76,6.11086031]
[1755355778233,7.94476347,188.91,188.77,5.294]
[1755355778528,2.87,188.89,188.78,3.06]
[1755355779231,2.87,188.89,188.79,3.06]
[1755355780632,2.87,188.87,188.79,3.06]
[1755355784335,4.43205998,188.91,188.79,3.06]
[1755355784336,3.85990313,188.86,188.79,3.06]
[1755355784633,2.87,188.85,188.79,3.06]
[1755355789632,3.02,188.83,188.73,2.98]
[1755355790139,3.02,188.83,188.74,5.2949]
[1755355790341,3.02,188.83,188.75,2.98]
[1755355790638,3.02,188.81,188.75,2.98]
[1755355791937,6.11086031,188.89,188.68,6.11086031]
[1755355791938,3.02,188.85,188.8,5.2931]
[1755355792139,3.02,188.85,188.81,2.98]
[1755355792536,3.02,188.85,188.81,8.2729]
[1755355792737,3.02,188.85,188.82,2.98]
[1755355792938,4.43205998,188.9,188.82,2.98]
[1755355793140,3.02,188.86,188.82,2.98]
[1755355793339,3.87007224,188.85,188.82,2.98]
[1755355793536,3.02,188.86,188.82,2.98]
[1755355793740,6.89007224,188.85,188.82,2.98]
[1755355793939,3.02,188.85,188.82,2.98]
[1755355795143,3.02,188.85,188.8,5.2932]
[1755355795144,3.02,188.85,188.83,2.98]
[1755355795441,3.02,188.85,188.84,2.98]
[1755355795839,3.02,188.85,188.8,5.2932]
[1755355796144,4.43205998,188.9,188.82,2.98]
[1755355796340,3.02,188.83,188.82,2.98]
[1755355796934,3.02,188.89,188.82,2.98]
[1755355797133,3.02,188.87,188.82,2.98]
[1755355797332,3.02,188.87,188.76,50.11086031]
[1755355797333,3.87389415,188.86,188.77,2.98]
[1755355797536,3.02,188.87,188.78,2.98]
[1755355798140,3.02,188.86,188.84,2.98]
[1755355798336,3.02,188.86,188.85,2.98]
[1755355799943,3.02,188.91,188.78,2.98]
[1755355800144,3.02,188.89,188.78,2.98]
[1755355800344,3.02,188.87,188.78,2.98]
[1755355800645,3.02,188.85,188.78,2.98]
[1755355801335,3.02,188.85,188.78,5.2938]
[1755355801535,3.02,188.85,188.79,2.98]
[1755355804339,3.02,188.85,188.76,44.0]
[1755355804538,3.02,188.83,188.69,6.11086031]
[1755355804740,3.8777581,188.84,188.65,400.04]
[1755355804741,3.02,188.81,188.7,2.98]
[1755355805041,3.02,188.78,188.66,2.98]